bitfinex/quotes_BTCUSD_20260125
["timestamp","ask_amount","ask_price","bid_price","bid_amount"]
[1769336543218,0.0002155,88559.0,88549.0,0.51063189]
[1769336543427,0.0002155,88559.0,88549.0,0.21791733]
[1769336543631,0.0002155,88559.0,88549.0,0.22921051]
[1769336543833,0.0002155,88559.0,88550.0,0.01129305]
[1769336544399,0.0002155,88559.0,88551.0,0.01129292]
[1769336544707,0.0002155,88559.0,88551.0,0.22921025]
[1769336544905,0.0002155,88559.0,88551.0,0.21791733]
[1769336546062,0.00027433,88559.0,88551.0,0.21791733]
[1769336547939,0.00027433,88559.0,88551.0,0.22921025]
[1769336548553,0.00027433,88559.0,88551.0,0.54463724]
[1769336548776,0.00027433,88559.0,88552.0,0.21791733]
[1769336550109,0.0004,88570.0,88552.0,0.21791733]
[1769336550110,0.56577944,88570.0,88552.0,0.21791733]
[1769336550319,0.56577944,88570.0,88552.0,0.22921012]
[1769336550526,0.56577944,88570.0,88553.0,0.53334432]
[1769336550731,0.56577944,88570.0,88554.0,0.53334432]
[1769336550886,0.56577944,88570.0,88555.0,0.21791733]
[1769336551980,0.56577944,88570.0,88541.0,0.21791733]
[1769336551981,0.00082624,88555.0,88541.0,0.21791733]
[1769336552180,0.00082624,88555.0,88542.0,0.01424079]
[1769336552387,0.00082624,88555.0,88541.0,5.883e-05]
[1769336552388,0.56537944,88552.0,88541.0,5.883e-05]
[1769336552987,0.12284651,88551.0,88541.0,5.883e-05]
[1769336553212,0.57255569,88548.0,88541.0,5.883e-05]
[1769336564543,0.0004,88570.0,88550.0,0.01129305]
[1769336564700,0.0452,88563.0,88553.0,0.56671693]
[1769336564917,0.0452,88563.0,88556.0,0.21791587]
[1769336576560,0.0452,88563.0,88550.0,0.56671693]
[1769336576877,0.0452,88563.0,88550.0,0.7846328]
[1769336577091,0.0452,88563.0,88551.0,0.21791587]
[1769336578198,0.0452,88563.0,88541.0,0.22594187]
[1769336578199,0.00276159,88562.0,88557.0,0.56671693]
[1769336578407,0.00276159,88562.0,88558.0,0.21791587]
[1769336578944,0.00276159,88562.0,88555.0,0.79592521]
[1769336579143,0.00276159,88562.0,88556.0,0.014126]
[1769336580349,0.00276159,88562.0,88556.0,0.02541828]
[1769336580712,0.00276159,88562.0,88556.0,0.014126]
[1769336580888,0.00276159,88562.0,88557.0,0.01129216]
[1769336581118,0.00276159,88562.0,88558.0,0.24339583]
[1769336581326,0.0452,88561.0,88560.0,0.7846328]
[1769336582329,0.0004,88570.0,88565.0,0.01129114]
[1769336582330,0.0456,88570.0,88565.0,0.01129114]
[1769336582539,0.0002101,88572.0,88565.0,0.01129114]
[1769336582750,0.0002101,88572.0,88567.0,0.56671693]
[1769336582964,0.0002101,88572.0,88569.0,0.22740143]
[1769336583381,0.0002101,88572.0,88564.0,0.01129126]
[1769336583382,0.0454,88578.0,88564.0,0.01129126]
[1769336583383,0.0454,88578.0,88571.0,0.22740143]
[1769336583384,0.0002,88578.0,88571.0,0.22740143]
[1769336583594,0.0002,88578.0,88574.0,0.22740143]
[1769336583815,0.0002,88578.0,88560.0,0.01129177]
[1769336584026,0.0002,88578.0,88561.0,0.22740143]
[1769336584465,0.0452,88582.0,88556.0,0.06775361]
[1769336584466,0.54770691,88581.0,88557.0,0.01129216]
[1769336584676,0.0452,88582.0,88555.0,0.05646084]
[1769336584677,0.54770691,88577.0,88555.0,0.22740143]
[1769336584877,0.54770691,88575.0,88555.0,0.22740143]
[1769336585026,0.16666046,88573.0,88555.0,0.22740143]
[1769336585301,0.54770691,88572.0,88555.0,0.22740143]
[1769336585636,0.54770691,88570.0,88546.0,0.22757473]
[1769336585834,0.17216965,88567.0,88546.0,0.22763356]
[1769336586058,0.54770691,88564.0,88546.0,0.22763356]
[1769336586403,0.00073334,88578.0,88546.0,0.22763356]
[1769336586537,0.00073334,88576.0,88546.0,0.22763356]
[1769336586878,0.54770691,88573.0,88546.0,0.22763356]
[1769336587116,0.54770691,88571.0,88546.0,0.22763356]
[1769336587251,0.00073334,88570.0,88546.0,0.22763356]
[1769336587459,0.54770691,88567.0,88546.0,0.22763356]
[1769336587656,0.54770691,88565.0,88546.0,0.22763356]
[1769336591574,0.00107493,88580.0,88565.0,0.01]
[1769336591899,0.00107493,88576.0,88565.0,0.00772054]
[1769336592100,0.00107493,88574.0,88556.0,0.26093199]
[1769336592299,0.0003733,88583.0,88556.0,0.26093199]
[1769336592500,0.21868,88573.0,88560.0,0.26093199]
[1769336592723,0.21868,88573.0,88561.0,0.26093199]
[1769336597662,0.21868,88573.0,88562.0,0.55493845]
[1769336597871,0.21868,88573.0,88563.0,0.26542998]
[1769336598369,0.21868,88573.0,88563.0,0.55493845]
[1769336598562,0.21868,88573.0,88564.0,0.26542998]
[1769336599382,0.0452,88579.0,88564.0,0.26542998]
[1769336600372,0.0452,88579.0,88566.0,0.82036843]
[1769336601046,0.0452,88579.0,88566.0,0.26542998]
[1769336601281,0.0452,88579.0,88561.0,0.01129165]
[1769336601282,0.0003733,88583.0,88580.0,0.55493845]
[1769336601480,0.0001733,88593.0,88584.0,0.55493845]
[1769336601682,0.0001733,88593.0,88573.0,0.01129012]
[1769336601683,0.0001733,88593.0,88585.0,0.15228138]
[1769336601882,0.0001733,88593.0,88575.0,0.24801907]
[1769336602012,0.0001733,88593.0,88577.0,0.55493845]
[1769336602222,0.0001733,88593.0,88578.0,0.24801907]
[1769336602443,0.50595427,88598.0,88578.0,0.24801907]
[1769336602444,0.50595427,88598.0,88579.0,0.24801907]
[1769336602445,0.00034208,88588.0,88579.0,0.24801907]
[1769336604273,0.00034208,88588.0,88581.0,0.24801907]
[1769336604471,0.00034208,88588.0,88582.0,0.80295752]
[1769336610052,0.00034208,88588.0,88584.0,0.24801907]
[1769336610259,0.00034208,88588.0,88586.0,0.24801907]
[1769336610666,0.00034208,88588.0,88586.0,0.80295752]
[1769336612037,0.00034208,88588.0,88582.0,0.01128897]
[1769336612238,0.00034208,88588.0,88584.0,0.24801907]
[1769336612458,0.00034208,88588.0,88586.0,0.24801907]
[1769336612812,0.0001201,88598.0,88588.0,0.24801907]
[1769336613012,0.0001201,88598.0,88591.0,0.50660061]
[1769336613299,0.0001201,88598.0,88591.0,0.7787365]
[1769336613543,0.0001201,88598.0,88586.0,0.77890174]
[1769336613982,0.0001201,88598.0,88584.0,0.01128872]
[1769336613983,0.0001201,88598.0,88587.0,0.50676585]
[1769336614190,0.0001201,88598.0,88584.0,0.01128872]
[1769336614191,0.0001825,88609.0,88597.0,0.27213589]
[1769336614385,0.0001825,88609.0,88595.0,0.0001]
[1769336614892,0.0001825,88609.0,88591.0,0.27213589]
[1769336616290,0.52483004,88606.0,88583.0,0.50676585]
[1769336616497,0.75237236,88605.0,88583.0,0.50676585]
[1769336617333,0.75237236,88605.0,88588.0,0.50676585]
[1769336617334,0.22754232,88605.0,88588.0,0.50676585]
[1769336617699,0.00047348,88606.0,88588.0,0.50676585]
[1769336618208,0.00043348,88606.0,88588.0,0.51805406]
[1769336619532,0.00043348,88606.0,88588.0,0.50676585]
[1769336619953,0.00043348,88606.0,88587.0,0.01128833]
[1769336620097,0.00043348,88606.0,88587.0,0.50676585]
[1769336620301,0.00043348,88606.0,88588.0,0.27213589]
[1769336620504,0.00043348,88606.0,88590.0,0.27213589]
[1769336620716,0.00043348,88606.0,88591.0,0.27213589]
[1769336621343,0.00043348,88606.0,88591.0,0.77890174]
[1769336621747,0.00043348,88606.0,88593.0,0.27213589]
[1769336621950,0.00043348,88606.0,88594.0,0.27213589]
[1769336622174,0.00043348,88606.0,88594.0,0.77890174]
[1769336624370,0.00043348,88606.0,88590.0,0.01128795]
[1769336624593,0.00043348,88606.0,88591.0,0.01311616]
[1769336624800,0.00043348,88606.0,88593.0,0.27213589]
[1769336625001,0.00043348,88606.0,88595.0,0.27213589]
[1769336625530,0.00043348,88606.0,88595.0,0.77890174]
[1769336628430,0.00043348,88606.0,88595.0,0.27213589]
[1769336630081,0.00043348,88606.0,88596.0,0.01291461]
[1769336630278,0.00043348,88606.0,88595.0,0.77890174]
[1769336632908,0.00043348,88606.0,88581.0,0.17623468]
[1769336632909,0.00043348,88606.0,88581.0,0.10850032]
[1769336633089,0.52483004,88605.0,88585.0,0.27213589]
[1769336633294,0.52483004,88605.0,88587.0,0.27213589]
[1769336633494,0.52483004,88605.0,88588.0,0.50676585]
[1769336633717,0.52483004,88605.0,88589.0,0.27213589]
[1769336633932,0.52483004,88605.0,88589.0,0.77890174]
[1769336634107,0.52483004,88605.0,88581.0,0.77890174]
[1769336634374,0.52483004,88601.0,88575.0,0.42053589]
[1769336634569,0.27422436,88598.0,88575.0,0.42053589]
[1769336634777,0.52483004,88595.0,88576.0,0.01304374]
[1769336634970,0.27422436,88594.0,88576.0,0.01304374]
[1769336635179,0.7990544,88605.0,88577.0,0.50676585]
[1769336635419,0.00043348,88606.0,88581.0,0.27213589]
[1769336635733,0.52483004,88602.0,88582.0,0.79194451]
[1769336635896,0.27422436,88601.0,88583.0,0.0141715]
[1769336637218,0.7990544,88601.0,88583.0,0.0141715]
[1769336637431,0.58175201,88601.0,88583.0,0.0141715]
[1769336637673,0.58175201,88601.0,88583.0,0.28630739]
[1769336637825,0.58175201,88601.0,88583.0,0.27213589]
[1769336638529,0.52483004,88601.0,88575.0,0.1484]
[1769336638738,0.59989247,88599.0,88577.0,0.27213589]
[1769336638937,0.59989247,88599.0,88578.0,0.27213589]
[1769336639632,0.52483004,88599.0,88578.0,0.27213589]
[1769336639832,0.52483004,88597.0,88578.0,0.27213589]
[1769336640412,0.52483004,88595.0,88578.0,0.27213589]
[1769336640617,0.52483004,88593.0,88572.0,0.50676585]
[1769336640818,0.05644604,88605.0,88571.0,0.0001825]
[1769336640819,0.07531947,88590.0,88571.0,0.0001825]
[1769336641026,0.52483004,88589.0,88571.0,0.0001825]
[1769336641199,0.07531947,88588.0,88571.0,0.0001825]
[1769336641376,0.52483004,88587.0,88571.0,0.0001825]
[1769336642451,0.18472655,88601.0,88571.0,0.0001825]
[1769336642604,0.52483004,88598.0,88571.0,0.27231839]
[1769336642807,0.04516,88599.0,88576.0,0.26776354]
[1769336643032,0.04516,88599.0,88580.0,0.47273999]
[1769336643193,0.04516,88599.0,88583.0,0.26776354]
[1769336643395,0.08264805,88606.0,88584.0,0.01293713]
[1769336643396,0.00043348,88606.0,88584.0,0.01293713]
[1769336643607,0.00043348,88606.0,88588.0,0.26776354]
[1769336643814,0.00043348,88606.0,88590.0,0.26776354]
[1769336644881,0.00043348,88606.0,88593.0,0.47273999]
[1769336645087,0.00043348,88606.0,88594.0,0.26776354]
[1769336645486,0.00043348,88606.0,88595.0,0.74050353]
[1769336646769,0.46263249,88616.0,88595.0,0.47273999]
[1769336647009,0.46263249,88616.0,88597.0,0.47273999]
[1769336647010,0.00014196,88616.0,88597.0,0.47273999]
[1769336647205,0.00014196,88616.0,88600.0,0.47273999]
[1769336647387,0.00014196,88616.0,88604.0,0.47273999]
[1769336647599,0.00014196,88616.0,88606.0,0.74050353]
[1769336647794,0.00014196,88616.0,88607.0,0.74050353]
[1769336647972,0.00014196,88616.0,88607.0,0.26776354]
[1769336648171,0.00014196,88616.0,88607.0,0.74050353]
[1769336648578,0.00014196,88616.0,88599.0,0.26776354]
[1769336648755,0.46277445,88616.0,88599.0,0.26776354]
[1769336648971,0.55384594,88616.0,88599.0,0.26776354]
[1769336651002,0.55384594,88616.0,88594.0,0.47273999]
[1769336651003,0.55384594,88616.0,88586.0,0.01128846]
[1769336651004,0.46277445,88616.0,88586.0,0.01128846]
[1769336651181,0.46277445,88616.0,88585.0,0.26776354]
[1769336651182,0.46263249,88612.0,88585.0,0.26776354]
[1769336651407,0.09387218,88609.0,88585.0,0.26776354]
[1769336651599,0.09519582,88607.0,88585.0,0.27905213]
[1769336651805,0.09519582,88607.0,88586.0,0.26776354]
[1769336651806,0.46263249,88606.0,88586.0,0.26776354]
[1769336652040,0.46263249,88606.0,88586.0,0.47273999]
[1769336652174,0.46263249,88606.0,88587.0,0.26776354]
[1769336655121,0.46263249,88606.0,88587.0,0.27905187]
[1769336655325,0.46263249,88606.0,88587.0,0.26776354]
[1769336655504,0.46263249,88606.0,88588.0,0.2728503]
[1769336655655,0.47630741,88604.0,88588.0,0.2728503]
[1769336655866,0.47630741,88604.0,88582.0,0.45480363]
[1769336655867,0.00014196,88616.0,88582.0,0.0001825]
[1769336655868,0.47630741,88614.0,88582.0,0.0001825]
[1769336656072,0.00014196,88616.0,88582.0,0.0001825]
[1769336656073,0.10193065,88611.0,88582.0,0.0001825]
[1769336656339,0.47630741,88608.0,88582.0,0.0001825]
[1769336656550,0.47630741,88604.0,88582.0,0.0001825]
[1769336656760,0.10314386,88601.0,88582.0,0.0001825]
[1769336656980,0.47630741,88598.0,88582.0,0.0001825]
[1769336657183,0.10314386,88595.0,88582.0,0.0001825]
[1769336657385,0.47630741,88594.0,88582.0,0.0001825]
[1769336657508,0.58064699,88594.0,88582.0,0.0001825]
[1769336661415,0.4164397,88594.0,88582.0,0.0001825]
[1769336663644,0.04516,88604.0,88594.0,0.01]
[1769336663645,0.47630741,88602.0,88594.0,0.01]
[1769336663849,0.57806003,88601.0,88583.0,0.45462113]
[1769336665914,0.04516,88604.0,88584.0,0.2728503]
[1769336666326,0.04516,88604.0,88586.0,0.2728503]
[1769336666755,0.52140547,88604.0,88586.0,0.2728503]
[1769336666887,0.04516,88604.0,88587.0,0.45462113]
[1769336667088,0.04516,88604.0,88590.0,0.2728503]
[1769336667294,0.04516,88604.0,88591.0,0.72747143]
[1769336668088,0.04516,88604.0,88591.0,0.45462113]
[1769336668313,0.04516,88604.0,88593.0,0.45462113]
[1769336668516,0.04516,88604.0,88593.0,0.72747143]
[1769336670690,0.04516,88604.0,88577.0,0.01128961]
[1769336670899,0.04516,88604.0,88579.0,0.2730179]
[1769336670900,0.4598382,88601.0,88579.0,0.2730179]
[1769336671118,0.4598382,88599.0,88579.0,0.2730179]
[1769336671339,0.56425575,88599.0,88579.0,0.2730179]
[1769336672897,0.04516,88604.0,88581.0,0.28062174]
[1769336673128,0.04516,88604.0,88584.0,0.42770982]
[1769336673327,0.04516,88604.0,88587.0,0.28062174]
[1769336673460,0.04516,88604.0,88588.0,0.28062174]
[1769336673669,0.04516,88604.0,88588.0,0.70833156]
[1769336674078,0.04516,88604.0,88589.0,0.42770982]
[1769336674309,0.04516,88604.0,88590.0,0.28062174]
[1769336674551,0.04516,88604.0,88594.0,0.28062174]
[1769336674756,0.04516,88604.0,88594.0,0.70833156]
[1769336674886,0.04516,88604.0,88595.0,0.42770982]
[1769336675469,0.42736132,88615.0,88597.0,0.42770982]
[1769336675470,0.04516,88610.0,88597.0,0.42770982]
[1769336675649,0.04516,88610.0,88598.0,0.70833156]
[1769336676272,0.04516,88610.0,88598.0,0.28062174]
[1769336676486,0.04516,88610.0,88595.0,0.01128731]
[1769336676487,0.04516,88610.0,88602.0,0.28062174]
[1769336676708,0.04516,88610.0,88591.0,0.01128782]
[1769336676709,0.04516,88610.0,88604.0,0.28062174]
[1769336678164,0.04512,88610.0,88604.0,0.70833156]
[1769336678957,0.04512,88610.0,88604.0,0.28062174]
[1769336682325,0.04512,88610.0,88606.0,0.28062174]
[1769336682525,0.04512,88610.0,88593.0,0.06772525]
[1769336682526,0.04512,88610.0,88608.0,0.28062174]
[1769336683160,0.04512,88610.0,88607.0,0.42770982]
[1769336683569,0.04512,88610.0,88604.0,0.28062174]
[1769336683768,0.17344,88615.0,88607.0,0.42770982]
[1769336683913,0.17344,88615.0,88608.0,0.28062174]
[1769336684538,0.17344,88615.0,88607.0,0.42770982]
[1769336684944,0.17344,88615.0,88607.0,0.70833156]
[1769336685472,0.17344,88615.0,88595.0,0.01128731]
[1769336685473,0.17344,88615.0,88597.0,0.28062174]
[1769336685823,0.17344,88615.0,88601.0,0.28062174]
[1769336686028,0.17344,88615.0,88604.0,0.42770982]
[1769336686229,0.17344,88615.0,88605.0,0.70833156]
[1769336687792,0.17344,88615.0,88596.0,0.01128719]
[1769336687995,0.00014196,88616.0,88599.0,0.0112868]
[1769336688206,0.00014196,88616.0,88597.0,0.01194524]
[1769336688207,0.00014196,88616.0,88604.0,0.42770982]
[1769336688411,0.00014196,88616.0,88607.0,0.70833156]
[1769336688620,0.00014196,88616.0,88593.0,0.01128757]
[1769336688811,0.00014196,88616.0,88596.0,0.42770982]
[1769336689010,0.00014196,88616.0,88599.0,0.28062174]
[1769336689226,0.00014196,88616.0,88601.0,0.42770982]
[1769336689452,0.00014196,88616.0,88602.0,0.28062174]
[1769336690274,0.00014196,88616.0,88605.0,0.42770982]
[1769336690480,0.00014196,88616.0,88608.0,0.28062174]
[1769336690684,0.00014196,88616.0,88610.0,0.28062174]
[1769336692733,0.00014196,88616.0,88612.0,0.28062174]
[1769336692948,0.00014196,88616.0,88613.0,0.70833156]
[1769336693257,0.00010196,88616.0,88614.0,0.28062174]
[1769336694066,0.00010196,88616.0,88612.0,0.28062174]
[1769336694973,0.0002,88626.0,88604.0,0.42770982]
[1769336695162,0.41960751,88625.0,88605.0,0.42770982]
[1769336695296,0.0002,88626.0,88605.0,0.42770982]
[1769336695297,0.41960751,88623.0,88605.0,0.42770982]
[1769336695508,0.41960751,88623.0,88604.0,0.00014196]
[1769336695509,0.41683779,88621.0,88604.0,0.00014196]
[1769336695710,0.56154052,88621.0,88604.0,0.00014196]
[1769336696145,0.0002,88626.0,88604.0,0.2807637]
[1769336696347,0.0002,88626.0,88604.0,0.70847352]
[1769336696550,0.0002,88626.0,88605.0,0.70833156]
[1769336697026,0.41364573,88626.0,88605.0,0.70833156]
[1769336697536,0.41364573,88626.0,88605.0,0.28062174]
[1769336697653,0.41364573,88626.0,88605.0,0.70833156]
[1769336698065,0.41007593,88623.0,88604.0,0.00014196]
[1769336698284,0.41007593,88621.0,88604.0,0.00014196]
[1769336698704,0.41007593,88621.0,88604.0,0.2807637]
[1769336699138,0.41007593,88621.0,88604.0,0.70847352]
[1769336700727,0.15045204,88622.0,88604.0,0.2807637]
[1769336700939,0.15045204,88622.0,88605.0,0.42770982]
[1769336701162,0.29490047,88605.0,88581.0,0.28062174]
[1769336701376,0.29490047,88605.0,88580.0,0.42770982]
[1769336701377,0.1734,88608.0,88590.0,0.28062174]
[1769336701611,0.04516,88607.0,88606.0,0.42770982]
[1769336701846,0.29505127,88622.0,88605.0,0.01]
[1769336701847,0.04516,88612.0,88607.0,0.42770982]
[1769336702075,0.04516,88612.0,88596.0,0.01128719]
[1769336702076,0.04516,88618.0,88611.0,0.42770982]
[1769336702324,0.04516,88618.0,88614.0,0.25746174]
[1769336702534,0.0002,88626.0,88614.0,0.66201157]
[1769336702954,0.04516,88626.0,88614.0,0.66201157]
[1769336703818,0.04516,88626.0,88614.0,0.42770982]
[1769336704023,0.04516,88626.0,88615.0,0.74583891]
[1769336704215,0.04516,88626.0,88615.0,0.30454199]
[1769336705055,0.04516,88626.0,88612.0,8.72e-05]
[1769336705056,0.04516,88627.0,88617.0,0.30454199]
[1769336705263,0.04516,88627.0,88612.0,8.72e-05]
[1769336705264,0.00014191,88626.0,88612.0,8.72e-05]
[1769336705441,0.43146844,88625.0,88612.0,8.72e-05]
[1769336705642,0.43146844,88624.0,88612.0,8.72e-05]
[1769336705846,0.2823246,88621.0,88612.0,8.72e-05]
[1769336706054,0.43146844,88620.0,88612.0,8.72e-05]
[1769336706635,0.00014191,88626.0,88612.0,8.72e-05]
[1769336706636,0.28320745,88619.0,88612.0,8.72e-05]
[1769336706837,0.43146844,88618.0,88612.0,8.72e-05]
[1769336707567,0.00014191,88626.0,88612.0,8.72e-05]
[1769336707568,0.28848495,88617.0,88612.0,8.72e-05]
[1769336707867,0.71012779,88613.0,88612.0,8.72e-05]
[1769336709539,0.01128426,88619.0,88602.0,0.0001724]
[1769336709950,0.28128844,88614.0,88602.0,0.0001724]
[1769336710154,0.28128844,88612.0,88602.0,0.0001724]
[1769336710356,0.00014191,88626.0,88602.0,0.0001724]
[1769336710357,0.71275688,88609.0,88602.0,0.0001724]
[1769336710647,0.1734,88611.0,88602.0,0.0001724]
[1769336712380,0.43146844,88608.0,88602.0,0.0001724]
[1769336712581,0.28472915,88605.0,88602.0,0.0001724]
[1769336712751,0.70654239,88603.0,88602.0,0.0001724]
[1769336712975,0.70654239,88603.0,88591.0,0.0001724]
[1769336712977,0.43146844,88602.0,88591.0,0.0001724]
[1769336713177,0.70654239,88599.0,88591.0,0.0001724]
[1769336713354,0.04516,88604.0,88591.0,0.0001724]
[1769336713578,0.47662844,88604.0,88591.0,0.0001724]
[1769336713988,0.04516,88603.0,88591.0,0.0001724]
[1769336714515,0.04516,88603.0,88591.0,0.00064588]
[1769336716203,0.2186,88602.0,88591.0,0.00064588]
[1769336719133,0.29331708,88600.0,88591.0,0.00064588]
[1769336719507,0.16916382,88654.0,88571.0,0.0001724]
[1769336719508,0.00892212,88577.0,88574.0,0.3345498]
[1769336719702,0.20926569,88634.0,88577.0,0.45050411]
[1769336719703,0.04516,88583.0,88577.0,0.45050411]
[1769336719913,0.04516,88583.0,88577.0,0.78505391]
[1769336720339,0.04516,88583.0,88574.0,0.00014208]
[1769336720760,0.04516,88582.0,88574.0,0.00014208]
[1769336722170,0.04516,88582.0,88561.0,0.3345498]
[1769336722171,0.29649579,88581.0,88561.0,0.3345498]
[1769336722401,0.4849804,88580.0,88562.0,0.3345498]
[1769336722601,0.04516,88582.0,88564.0,0.45050411]
[1769336722782,0.04516,88582.0,88566.0,0.45050411]
[1769336722988,0.04516,88582.0,88568.0,0.78505391]
[1769336723336,0.04516,88582.0,88569.0,0.3345498]
[1769336723629,0.4849804,88581.0,88560.0,0.01155617]
[1769336723854,0.34802112,88582.0,88562.0,0.3345498]
[1769336723855,0.04516,88582.0,88562.0,0.3345498]
[1769336723983,0.04516,88582.0,88560.0,0.01155617]
[1769336723984,0.04516,88582.0,88565.0,0.45050411]
[1769336724190,0.04516,88582.0,88568.0,0.3345498]
[1769336724405,0.04516,88582.0,88571.0,0.45050411]
[1769336724616,0.31505843,88597.0,88560.0,0.30384305]
[1769336724617,0.29930672,88618.0,88560.0,0.30384305]
[1769336724618,0.01128515,88612.0,88582.0,0.00107787]
[1769336724984,0.05644553,88609.0,88582.0,0.00107787]
[1769336725396,0.30377137,88607.0,88582.0,0.00107787]
[1769336725599,0.05643237,88602.0,88582.0,0.00107787]
[1769336725805,0.04516,88609.0,88556.0,0.2258442]
[1769336725806,0.30491701,88596.0,88569.0,0.05645256]
[1769336726011,0.78989741,88595.0,88576.0,0.3345498]
[1769336726217,0.78989741,88595.0,88578.0,0.45050411]
[1769336726428,0.78989741,88595.0,88574.0,0.01128999]
[1769336726429,0.4849804,88595.0,88574.0,0.01128999]
[1769336726638,0.4849804,88602.0,88578.0,0.3345498]
[1769336726841,0.4849804,88602.0,88581.0,0.45050411]
[1769336727060,0.2186,88601.0,88584.0,0.3345498]
[1769336727265,0.2186,88601.0,88585.0,0.3345498]
[1769336727473,0.4849804,88602.0,88585.0,0.3345498]
[1769336727676,0.2186,88600.0,88587.0,0.45050411]
[1769336727827,0.2186,88600.0,88588.0,0.3345498]
[1769336731897,0.04956421,88605.0,88588.0,0.3345498]
[1769336732137,0.21864,88604.0,88588.0,0.3345498]
[1769336734101,0.52955122,88603.0,88570.0,0.30357738]
[1769336734307,0.32626656,88600.0,88567.0,0.01129088]
[1769336734501,0.52955122,88597.0,88572.0,0.56908124]
[1769336734678,0.03393115,88604.0,88574.0,0.3449635]
[1769336734679,0.32702757,88595.0,88574.0,0.3449635]
[1769336734918,0.52955122,88594.0,88575.0,0.3449635]
[1769336735126,0.52955122,88593.0,88575.0,0.3449635]
[1769336735328,0.52955122,88592.0,88575.0,0.3449635]
[1769336735661,0.01128693,88598.0,88562.0,0.06774898]
[1769336735662,0.33741632,88590.0,88562.0,0.01129152]
[1769336735780,0.52955122,88589.0,88563.0,0.01129139]
[1769336735983,0.52955122,88589.0,88564.0,0.3449635]
[1769336736208,0.52955122,88589.0,88567.0,0.56908124]
[1769336736408,0.52955122,88589.0,88570.0,0.3449635]
[1769336736628,0.52955122,88589.0,88572.0,0.3449635]
[1769336736807,0.52955122,88589.0,88573.0,0.3449635]
[1769336737007,0.04516,88592.0,88560.0,0.0002644]
[1769336737008,0.33813959,88588.0,88560.0,0.0002644]
[1769336737204,0.04516,88592.0,88563.0,0.56908124]
[1769336737205,0.52955122,88585.0,88563.0,0.56908124]
[1769336737406,0.52955122,88585.0,88566.0,0.3449635]
[1769336737677,0.52955122,88585.0,88567.0,0.56908124]
[1769336737868,0.52955122,88585.0,88568.0,0.3449635]
[1769336738367,0.52969008,88585.0,88568.0,0.3449635]
[1769336739805,0.52969008,88585.0,88561.0,0.91404474]
[1769336739806,0.34473474,88582.0,88561.0,0.91404474]
[1769336740006,0.52955122,88581.0,88562.0,0.35917586]
[1769336740245,0.52955122,88581.0,88563.0,0.3449635]
[1769336740384,0.52955122,88581.0,88564.0,0.92774062]
[1769336740576,0.52955122,88581.0,88564.0,0.91404474]
[1769336741629,0.34607462,88581.0,88564.0,0.3449635]
[1769336741829,0.52955122,88580.0,88564.0,0.3449635]
[1769336743840,0.34700907,88580.0,88564.0,0.3449635]
[1769336744049,0.52955122,88579.0,88564.0,0.3449635]
[1769336748349,0.34700907,88580.0,88564.0,0.3449635]
[1769336750160,0.34700907,88580.0,88564.0,0.91404474]
[1769336750368,0.52955122,88584.0,88565.0,0.91404474]
[1769336750575,0.52955122,88584.0,88566.0,0.3449635]
[1769336750988,0.52955122,88584.0,88566.0,0.91404474]
[1769336751410,0.52955122,88584.0,88566.0,0.56908124]
[1769336751614,0.52955122,88584.0,88567.0,0.3449635]
[1769336753164,0.00013886,88585.0,88570.0,0.56908124]
[1769336753369,0.00013886,88585.0,88571.0,0.3449635]
[1769336755685,0.01142745,88585.0,88571.0,0.3449635]
[1769336756369,0.52955122,88583.0,88564.0,0.3449635]
[1769336756761,0.54084006,88583.0,88564.0,0.3449635]
[1769336756975,0.34714793,88585.0,88565.0,0.3449635]
[1769336757178,0.34714793,88585.0,88566.0,0.91404474]
[1769336757381,0.87669915,88585.0,88566.0,0.91404474]
[1769336758306,0.00013886,88585.0,88568.0,0.56908124]
[1769336758611,0.00013886,88585.0,88573.0,0.3449635]
[1769336758889,0.00013886,88585.0,88577.0,0.3449635]
[1769336759172,0.00013886,88585.0,88578.0,0.91404474]
[1769336760793,0.00013886,88585.0,88560.0,0.30409962]
[1769336761006,0.52955122,88584.0,88561.0,0.01036973]
[1769336761336,0.52955122,88584.0,88565.0,0.3449635]
[1769336761527,0.52955122,88584.0,88567.0,0.56908124]
[1769336761732,0.52955122,88584.0,88568.0,0.3449635]
[1769336763007,0.34683156,88583.0,88563.0,0.99523111]
[1769336763187,0.68409668,88582.0,88564.0,0.01160018]
[1769336763603,0.68409668,88582.0,88564.0,0.34177816]
[1769336763823,0.68409668,88582.0,88564.0,0.99523111]
[1769336764175,0.68409668,88582.0,88565.0,0.33017798]
[1769336764371,0.68409668,88582.0,88566.0,0.01143147]
[1769336765948,0.68409668,88582.0,88566.0,0.33017798]
[1769336771263,0.48390824,88582.0,88566.0,0.33017798]
[1769336771459,0.48390824,88582.0,88566.0,0.99523111]
[1769336771895,0.48390824,88582.0,88567.0,0.33017798]
[1769336772553,0.35812066,88581.0,88561.0,0.33017798]
[1769336772812,0.68409668,88580.0,88561.0,0.33017798]
[1769336774735,0.68409668,88580.0,88561.0,1.05040149]
[1769336775148,0.68409668,88580.0,88562.0,0.34229459]
[1769336775561,0.68409668,88580.0,88562.0,1.0625181]
[1769336776035,0.68409668,88580.0,88563.0,1.0625181]
[1769336776487,0.68409668,88580.0,88564.0,0.34229459]
[1769336777110,0.69538591,88580.0,88564.0,0.34229459]
[1769336777937,0.68409668,88580.0,88564.0,0.34229459]
[1769336779779,0.74054306,88580.0,88564.0,0.34229459]
[1769336779981,0.69538591,88580.0,88564.0,0.34229459]
[1769336781000,0.68409668,88580.0,88564.0,0.34229459]
[1769336781238,0.69538591,88580.0,88564.0,0.34229459]
[1769336781403,0.01128948,88578.0,88564.0,0.34229459]
[1769336782055,0.01128961,88577.0,88564.0,0.34229459]
[1769336782207,0.01128961,88577.0,88564.0,0.34261819]
[1769336782413,0.01128948,88578.0,88564.0,0.34261819]
[1769336783611,0.01128961,88577.0,88564.0,0.34261819]
[1769336783799,0.01128948,88578.0,88564.0,0.34261819]
[1769336784026,0.01128935,88579.0,88564.0,0.34261819]
[1769336784220,0.01128948,88578.0,88564.0,0.34261819]
[1769336784437,0.01128948,88578.0,88557.0,0.0001624]
[1769336784438,0.01129012,88573.0,88557.0,0.0001624]
[1769336784603,0.27809835,88578.0,88557.0,0.0001624]
[1769336784604,0.01129088,88567.0,88557.0,0.0001624]
[1769336784808,1.04048337,88566.0,88557.0,0.0001624]
[1769336785188,0.70093956,88565.0,88557.0,0.0001624]
[1769336786531,0.70093956,88559.0,88557.0,0.0001624]
[1769336786768,0.07358107,88565.0,88557.0,0.0001624]
[1769336786769,1.03064577,88558.0,88557.0,0.0001624]
[1769336787616,0.18476948,88578.0,88557.0,0.0001624]
[1769336787823,0.18476948,88578.0,88558.0,0.00107787]
[1769336787824,0.33954381,88569.0,88558.0,0.00107787]
[1769336788047,0.0112905,88570.0,88558.0,0.00107787]
[1769336788048,0.70093956,88566.0,88558.0,0.00107787]
[1769336788266,0.0112905,88570.0,88558.0,0.00107787]
[1769336788472,0.70093956,88567.0,88558.0,0.00107787]
[1769336788689,1.04048337,88565.0,88558.0,0.00107787]